bitfinex/quotes_SOLUSD_20250402
["timestamp","ask_amount","ask_price","bid_price","bid_amount"]
[1743635875158,73.50392793,118.04,117.98,29.666]
[1743635875366,73.50392793,118.05,117.98,29.666]
[1743635875954,73.50392793,118.04,117.98,29.666]
[1743635876367,73.50392793,118.04,117.98,8.476]
[1743635876575,73.50392793,118.02,117.98,8.476]
[1743635877088,73.50392793,118.04,117.98,29.666]
[1743635877382,18.64964886,118.06,117.98,29.666]
[1743635877857,73.50392793,118.06,117.98,29.666]
[1743635878362,73.50392793,118.07,117.99,10.22]
[1743635878677,73.50392793,118.08,117.99,92.12]
[1743635878856,18.64964886,118.08,117.99,92.12]
[1743635879058,73.50392793,118.07,117.99,92.12]
[1743635879855,18.64964886,118.08,117.99,92.12]
[1743635880050,18.64964886,118.1,118.0,2.04318471]
[1743635880287,73.50392793,118.11,118.02,0.28432314]
[1743635880481,73.50392793,118.09,118.03,29.6534]
[1743635880775,73.50392793,118.09,118.03,8.4724]
[1743635880776,73.50392793,118.07,118.03,8.4724]
[1743635880956,73.50392793,118.06,118.02,8.4731]
[1743635881461,73.50392793,118.06,118.01,14.8221]
[1743635881664,73.50392793,118.05,118.01,8.4734]
[1743635882077,26.0,118.06,118.01,8.4734]
[1743635882578,73.50392793,118.07,118.01,29.658]
[1743635882757,92.15357679,118.08,118.01,29.658]
[1743635882955,18.64964886,118.09,118.01,72.0272]
[1743635883156,92.15357679,118.09,118.01,153.9272]
[1743635883371,73.50392793,118.07,118.01,90.3734]
[1743635883574,73.50392793,118.06,118.01,90.3734]
[1743635884166,73.50392793,118.05,118.01,8.4734]
[1743635884582,73.50392793,118.06,118.01,8.4734]
[1743635885169,73.50392793,118.07,118.01,8.4734]
[1743635885489,73.50392793,118.09,118.01,111.558]
[1743635885786,67.49161982,118.08,118.01,111.558]
[1743635885968,48.84197096,118.08,118.01,111.558]
[1743635886482,48.84197096,118.06,118.01,111.558]
[1743635886689,26.0,118.07,118.01,111.558]
[1743635886872,74.84197096,118.07,118.01,111.558]
[1743635887805,48.84197096,118.08,118.01,111.558]
[1743635888083,18.64964886,118.05,118.01,90.3734]
[1743635888291,67.49161982,118.05,118.01,90.3734]
[1743635889787,67.49161982,118.05,118.01,8.4734]
[1743635890182,18.64964886,118.07,118.01,8.4734]
[1743635890377,48.84197096,118.05,118.01,8.4734]
[1743635890775,48.84197096,118.05,118.01,8.5034]
[1743635890971,82.1,118.1,118.01,8.5034]
[1743635891178,48.84197096,118.1,118.02,0.42648471]
[1743635891381,8.5297,118.11,118.02,0.42648471]
[1743635891690,48.90497096,118.11,118.02,0.42648471]
[1743635891883,18.64964886,118.1,118.02,0.42648471]
[1743635892195,48.90497096,118.11,118.04,0.14216157]
[1743635892196,0.063,118.11,118.04,0.14216157]
[1743635892380,0.063,118.11,118.05,1.79312314]
[1743635892577,0.063,118.11,118.07,0.28432314]
[1743635892888,0.063,118.11,118.07,82.18432314]
[1743635893202,0.063,118.11,118.07,81.9]
[1743635893404,18.64964886,118.07,118.03,96.7977]
[1743635893571,48.84197096,118.05,118.01,1.5856]
[1743635893899,48.84197096,118.06,118.01,1.5856]
[1743635894075,18.64964886,118.07,118.01,31.2437]
[1743635894076,48.84197096,118.07,118.01,31.2437]
[1743635894587,18.64964886,118.06,118.01,10.0591]
[1743635894774,67.49161982,118.06,118.01,10.0591]
[1743635896188,67.49161982,118.04,118.01,0.03]
[1743635896581,48.84197096,118.03,118.01,0.03]
[1743635896892,67.49161982,118.02,118.01,0.03]
[1743635897485,26.0,118.03,118.01,0.03]
[1743635898084,48.84197096,118.05,118.01,0.03]
[1743635899373,74.84197096,118.02,118.01,0.03]
[1743635899573,18.64964886,118.06,118.01,0.03]
[1743635902281,48.84197096,118.06,118.01,0.03]
[1743635903582,48.84197096,118.04,118.01,0.03]
[1743635903788,48.84197096,118.03,118.01,0.03]
[1743635903988,18.64964886,118.05,118.01,0.03]
[1743635903989,48.84197096,118.04,118.01,0.03]
[1743635904397,48.84197096,118.03,118.01,0.03]
[1743635905207,67.49161982,118.03,118.01,0.03]
[1743635905796,18.64964886,118.03,118.01,0.03]
[1743635906107,8.5329,118.07,118.01,0.03]
[1743635906108,48.84197096,118.06,118.01,0.03]
[1743635906577,18.64964886,118.04,118.01,0.03]
[1743635906773,48.84197096,118.04,118.01,0.03]
[1743635906991,18.64964886,118.03,118.01,0.03]
[1743635907200,18.64964886,118.04,118.01,0.03]
[1743635907378,67.49161982,118.04,118.01,0.03]
[1743635907804,48.84197096,118.03,118.01,0.03]
[1743635908699,0.063,118.07,118.01,81.93]
[1743635908999,0.063,118.07,118.02,8.4731]
[1743635909181,48.84197096,118.06,118.02,8.4731]
[1743635909692,74.84197096,118.03,118.01,0.03]
[1743635909891,116.33359078,118.02,118.01,0.03]
[1743635910277,67.49161982,118.02,118.01,0.03]
[1743635910478,18.64964886,118.04,118.01,0.03]
[1743635910684,48.84197096,118.03,118.01,0.03]
[1743635910885,48.84197096,118.02,118.01,0.03]
[1743635912600,0.063,118.07,118.01,89.7863]
[1743635912903,0.063,118.07,118.04,0.28432314]
[1743635913105,0.063,118.07,118.05,0.14216157]
[1743635913320,0.063,118.11,118.07,0.28432314]
[1743635913616,0.063,118.11,118.07,81.9]
[1743635913988,48.84197096,118.1,118.06,7.8563]
[1743635914317,48.90497096,118.11,118.06,1.5725]
[1743635914501,0.063,118.11,118.06,83.4725]
[1743635915204,0.063,118.09,118.07,8.4695]
[1743635915803,0.063,118.09,118.06,91.9424]
[1743635916792,0.063,118.09,118.06,83.4725]
[1743635916991,0.063,118.09,118.03,96.4919]
[1743635916992,48.84197096,118.08,118.03,96.4919]
[1743635917195,48.84197096,118.07,118.03,88.0198]
[1743635917395,48.84197096,118.05,118.03,81.9]
[1743635917608,48.84197096,118.05,118.01,0.03]
[1743635918111,48.84197096,118.06,118.01,8.5037]
[1743635918599,48.84197096,118.05,118.01,0.03]
[1743635918798,48.84197096,118.06,118.01,8.5037]
[1743635922615,18.64964886,118.07,118.01,8.5037]
[1743635922824,18.64964886,118.07,118.01,0.03]
[1743635923013,48.84197096,118.03,118.01,0.03]
[1743635923317,48.84197096,118.05,118.01,0.03]
[1743635923897,67.49161982,118.06,118.01,0.03]
[1743635924517,26.0,118.06,118.01,81.93]
[1743635924898,26.0,118.06,118.02,8.4731]
[1743635925103,48.84197096,118.05,118.01,90.4034]
[1743635926017,26.0,118.06,118.01,90.4034]
[1743635926018,48.84197096,118.06,118.01,90.4034]
[1743635926720,67.49161982,118.05,118.01,81.93]
[1743635927015,48.84197096,118.04,118.01,81.93]
[1743635927218,67.49161982,118.05,118.01,90.4037]
[1743635927420,48.84197096,118.06,118.01,90.4037]
[1743635927620,26.0,118.06,118.01,90.4037]
[1743635928425,26.0,118.06,118.01,111.5883]
[1743635929502,26.0,118.06,118.01,90.4037]
[1743635929901,74.84197096,118.06,118.01,90.4037]
[1743635931823,48.84197096,118.05,118.01,90.4037]
[1743635932022,48.84197096,118.05,118.01,81.93]
[1743635932523,48.84197096,118.05,118.01,90.4038]
[1743635934917,48.84197096,118.05,118.01,8.5038]
[1743635935223,48.84197096,118.05,118.01,0.03]
[1743635936626,18.64964886,118.05,118.01,0.03]
[1743635937032,0.063,118.07,118.02,0.28432314]
[1743635937210,0.063,118.07,118.04,8.4717]
[1743635937523,0.063,118.07,118.04,90.3717]
[1743635937726,0.063,118.07,118.05,1.575]
[1743635937907,0.063,118.07,118.05,83.475]
[1743635938329,0.063,118.07,118.06,0.42648471]
[1743635938831,0.063,118.09,118.06,82.32648471]
[1743635939035,0.063,118.09,118.08,0.28432314]
[1743635939235,0.063,118.11,118.08,0.28432314]
[1743635939236,0.063,118.11,118.09,14.9537]
[1743635941314,0.063,118.11,118.05,1.575]
[1743635941315,0.063,118.11,118.06,6.6619]
[1743635941512,48.90497096,118.11,118.07,8.4695]
[1743635942227,48.84197096,118.1,118.06,15.1319]
[1743635942434,48.84197096,118.08,118.05,1.575]
[1743635942617,74.84197096,118.07,118.03,88.1545]
[1743635942811,26.0,118.07,118.03,88.1545]
[1743635943217,48.84197096,118.05,118.01,20.1915]
[1743635943508,48.84197096,118.05,118.01,10.0115]
[1743635944130,67.49161982,118.06,118.01,10.0115]
[1743635944333,48.84197096,118.08,118.01,113.0961]
[1743635944635,26.0,118.07,118.02,0.28432314]
[1743635945225,26.0,118.07,118.03,8.4724]
[1743635945431,26.0,118.07,118.04,0.28432314]
[1743635945630,26.0,118.07,118.04,82.18432314]
[1743635945836,26.0,118.07,118.04,81.9]
[1743635946255,26.0,118.08,118.04,81.9]
[1743635947241,26.0,118.08,118.05,8.4709]
[1743635947545,26.0,118.07,118.05,8.4709]
[1743635947718,26.0,118.07,118.04,90.3713]
[1743635948560,74.84197096,118.07,118.04,90.3713]
[1743635948849,74.84197096,118.07,118.04,81.9]
[1743635949049,74.84197096,118.07,118.04,90.3716]
[1743635949225,26.0,118.08,118.04,90.3716]
[1743635949425,48.84197096,118.07,118.04,90.3716]
[1743635949743,48.84197096,118.05,118.01,1.5381]
[1743635950646,48.84197096,118.04,118.01,1.5381]
[1743635950848,48.84197096,118.03,118.01,1.5381]
[1743635951223,48.84197096,118.03,118.01,0.03]
[1743635951749,48.84197096,118.04,118.01,0.03]
[1743635952434,48.84197096,118.05,118.01,0.03]
[1743635952825,18.64964886,118.06,118.01,0.03]
[1743635953021,48.84197096,118.05,118.01,0.03]
[1743635953222,8.5299,118.11,118.01,136.51648471]
[1743635953418,0.063,118.11,118.03,0.42648471]
[1743635953644,0.063,118.11,118.05,0.14216157]
[1743635953845,0.063,118.11,118.06,10.44432314]
[1743635954243,0.063,118.11,118.09,0.42648471]
[1743635954542,0.063,118.11,118.09,82.32648471]
[1743635955046,0.063,118.11,118.09,82.18432314]
[1743635955222,0.063,118.11,118.09,81.9]
[1743635955623,0.063,118.11,118.1,8.4674]
[1743635955823,0.063,118.11,118.1,18.6274]
[1743635956252,0.063,118.11,118.1,18.91172314]
[1743635957926,0.063,118.11,118.1,19.05388471]
[1743635958157,0.063,118.13,118.12,0.14216157]
[1743635958331,0.063,118.13,118.12,82.32648471]
[1743635958532,0.063,118.13,118.12,81.9]
[1743635959843,0.063,118.13,118.12,90.79238471]
[1743635960673,0.063,118.13,118.12,90.65022314]
[1743635961049,0.063,118.13,118.12,81.9]
[1743635961476,0.063,118.13,118.12,90.3659]
[1743635961976,0.063,118.13,118.12,81.9]
[1743635962183,48.90497096,118.13,118.1,81.9]
[1743635962550,0.063,118.13,118.1,90.3673]
[1743635963058,0.063,118.13,118.11,0.42648471]
[1743635963371,0.063,118.13,118.11,82.32648471]
[1743635963870,0.063,118.13,118.11,82.18432314]
[1743635964070,0.063,118.13,118.11,90.65052314]
[1743635965082,0.063,118.13,118.12,0.14216157]
[1743635965242,0.063,118.13,118.12,82.32648471]
[1743635965646,0.063,118.13,118.12,82.04216157]
[1743635965860,0.063,118.13,118.12,81.9]
[1743635969066,0.063,118.13,118.12,90.3659]
[1743635971953,0.063,118.13,118.12,90.65022314]
[1743635972565,0.063,118.13,118.12,81.9]
[1743635973072,0.063,118.13,118.12,90.3659]
[1743635974564,0.063,118.13,118.12,81.9]
[1743635974772,0.063,118.13,118.12,90.3659]
[1743635974957,0.063,118.13,118.12,81.9]
[1743635976084,0.063,118.13,118.11,8.4663]
[1743635978293,0.063,118.13,118.12,0.28432314]
[1743635978885,0.063,118.13,118.12,8.75022314]
[1743635979458,0.063,118.13,118.12,8.89238471]
[1743635980480,0.063,118.13,118.12,8.4659]
[1743635982169,0.063,118.13,118.11,90.3665]
[1743635985898,0.063,118.13,118.11,90.3965]
[1743635998414,0.063,118.13,118.11,0.03]
[1743635998599,30.55082828,118.13,118.11,0.03]
[1743635999098,49.13747714,118.12,118.11,0.03]
[1743635999409,30.55082828,118.13,118.11,0.03]
[1743635999609,30.48782828,118.12,118.11,0.03]
[1743635999915,49.13747714,118.12,118.11,0.03]
[1743636000511,18.64964886,118.12,118.11,0.03]
[1743636000817,49.13747714,118.12,118.11,0.03]
[1743636001022,18.64964886,118.11,118.09,0.03]
[1743636001214,49.13747714,118.1,118.09,0.03]
[1743636002311,57.60487714,118.1,118.09,0.03]
[1743636002625,26.0,118.06,118.02,81.9]
[1743636002791,30.48782828,118.03,118.01,0.03]
[1743636002989,30.48782828,118.02,118.01,0.03]
[1743636003190,49.13747714,118.02,118.01,0.03]
[1743636003391,79.62530542,118.02,118.01,0.03]
[1743636003598,49.13747714,118.02,118.01,0.03]
[1743636004098,79.62530542,118.02,118.01,0.03]
[1743636004307,49.13747714,118.02,118.01,0.03]
[1743636004904,290.56,118.07,118.01,0.03]
[1743636005099,30.48782828,118.06,118.01,81.93]
[1743636005300,30.48782828,118.07,118.01,81.93]
[1743636005726,30.48782828,118.06,118.01,81.93]
[1743636005922,30.48782828,118.05,118.01,81.93]
[1743636006229,30.48782828,118.04,118.01,81.93]
[1743636006398,30.48782828,118.03,118.01,81.93]
[1743636006935,30.48782828,118.02,118.01,81.93]
[1743636007512,30.48782828,118.03,118.01,81.93]
[1743636007735,48.88829623,118.03,118.01,81.93]
[1743636008103,48.88829623,118.04,118.01,90.4037]
[1743636008318,6.1638,118.09,118.01,90.4037]
[1743636008494,48.88829623,118.07,118.01,111.5883]
[1743636009601,48.88829623,118.08,118.02,0.28432314]
[1743636009799,48.88829623,118.09,118.03,1.6587]
[1743636010030,48.88829623,118.1,118.03,1.6587]
[1743636010205,48.88829623,118.1,118.04,6.0199]
[1743636010400,48.88829623,118.1,118.04,87.9199]
[1743636010725,48.88829623,118.11,118.05,29.6483]
[1743636011221,48.88829623,118.1,118.05,8.4709]
[1743636011623,48.95129623,118.12,118.06,0.28432314]
[1743636011996,26.0,118.09,118.06,0.28432314]
[1743636012518,0.063,118.12,118.07,8.4695]
[1743636012734,0.063,118.12,118.08,0.28432314]
[1743636013433,0.063,118.12,118.08,82.32648471]
[1743636013798,0.063,118.12,118.1,0.28432314]
[1743636014000,0.063,118.12,118.1,82.18432314]
[1743636014200,0.063,118.12,118.11,6.4743]
[1743636014504,0.0001,118.13,118.12,8.60806157]
[1743636014821,0.0001,118.13,118.12,134.79238471]
[1743636015031,48.95129623,118.19,118.12,155.5308]
[1743636015335,48.88829623,118.15,118.11,14.9406]
[1743636015626,48.88829623,118.14,118.1,8.467]
[1743636015999,74.88829623,118.14,118.1,8.467]
[1743636016208,74.88829623,118.14,118.09,92.0271]
[1743636016415,26.0,118.14,118.09,92.0271]
[1743636016601,26.0,118.14,118.1,0.14216157]
[1743636016802,26.0,118.14,118.1,0.42648471]
[1743636017031,48.88829623,118.16,118.1,0.28432314]
[1743636017227,26.0,118.14,118.1,0.42648471]
[1743636017410,26.0,118.15,118.1,0.42648471]
[1743636017914,26.0,118.15,118.1,126.32648471]
[1743636018302,0.063,118.19,118.12,19.07613357]
[1743636018507,0.063,118.19,118.17,8.4623]
[1743636018720,0.063,118.19,118.17,90.3623]
[1743636019272,0.063,118.23,118.18,16.86618471]
[1743636019559,0.063,118.23,118.18,98.76618471]
[1743636019862,0.063,118.23,118.2,0.42648471]
[1743636020060,0.0001,118.24,118.23,81.9]
[1743636020359,0.0001,118.25,118.24,0.14216157]
[1743636020570,0.0001,118.26,118.25,8.59876157]
[1743636020776,0.0001,118.26,118.25,90.78308471]
[1743636021075,7.233,118.37,118.25,90.78308471]
[1743636021076,48.88829623,118.35,118.26,0.28432314]
[1743636021238,0.5,118.4,118.28,0.42648471]
[1743636021570,48.88829623,118.37,118.3,0.14216157]
[1743636021940,48.88829623,118.36,118.3,0.28432314]
[1743636022269,48.88829623,118.36,118.27,1.5662]
[1743636022270,48.88829623,118.31,118.27,1.5662]
[1743636022438,48.88829623,118.31,118.27,83.4662]
[1743636022633,48.88829623,118.31,118.28,8.4545]
[1743636022835,48.88829623,118.32,118.28,8.4545]
[1743636023768,18.64964886,118.32,118.25,81.9]
[1743636023954,10.1,118.34,118.26,0.14216157]
[1743636023955,48.88829623,118.31,118.26,0.14216157]
[1743636024156,48.88829623,118.32,118.26,0.42648471]
[1743636024364,48.88829623,118.33,118.26,82.32648471]
[1743636024542,48.88829623,118.33,118.28,0.28432314]
[1743636024739,48.95129623,118.35,118.28,82.18432314]
[1743636024949,48.88829623,118.33,118.28,81.9]
[1743636025160,48.88829623,118.31,118.28,81.9]
[1743636025659,26.0,118.29,118.26,81.9]
[1743636025868,85.18247359,118.27,118.24,81.9]
[1743636026052,26.0,118.29,118.24,90.3573]
[1743636026247,85.18247359,118.28,118.24,90.3573]
[1743636026657,85.18247359,118.29,118.25,0.28432314]
[1743636026857,26.0,118.3,118.25,82.18432314]
[1743636027046,85.18247359,118.32,118.25,82.18432314]
[1743636027954,85.18247359,118.3,118.25,81.9]
[1743636028249,85.18247359,118.27,118.24,8.4573]
[1743636028642,18.64964886,118.3,118.24,8.4573]
[1743636028948,85.18247359,118.29,118.24,8.4573]
[1743636029146,111.18247359,118.3,118.24,29.6007]
[1743636029969,18.71264886,118.35,118.25,10.50648471]
[1743636030262,85.18247359,118.32,118.25,136.40648471]
[1743636030444,111.18247359,118.32,118.25,136.40648471]
[1743636030647,26.0,118.32,118.25,136.40648471]
[1743636030874,85.18247359,118.31,118.26,8.4559]
[1743636031170,26.0,118.32,118.25,91.98]
[1743636031171,85.18247359,118.28,118.25,90.3564]
[1743636031467,0.03,118.3,118.25,90.3564]
[1743636031468,85.21247359,118.3,118.25,90.3564]
[1743636031646,0.03,118.3,118.26,0.28432314]
[1743636032041,0.03,118.3,118.25,111.498]
[1743636032237,85.21247359,118.3,118.26,0.28432314]
[1743636032561,26.03,118.3,118.26,0.28432314]
[1743636032873,85.18247359,118.29,118.25,90.3564]
[1743636033246,111.21247359,118.3,118.26,0.28432314]
[1743636033442,111.21247359,118.3,118.25,90.3564]
[1743636033645,26.0,118.29,118.26,0.28432314]
[1743636034969,111.18247359,118.29,118.26,8.4556]
[1743636035970,111.18247359,118.29,118.25,81.9]
[1743636036272,85.18247359,118.26,118.22,81.9]
[1743636036443,85.18247359,118.26,118.23,8.4575]
[1743636036868,26.0,118.26,118.23,8.4575]
[1743636037069,111.18247359,118.26,118.23,8.4575]
[1743636037269,26.0,118.26,118.23,8.4575]
[1743636037477,85.18247359,118.26,118.23,8.4575]
[1743636037870,85.18247359,118.25,118.22,81.9]
[1743636038375,85.18247359,118.26,118.22,81.9]
[1743636038561,111.18247359,118.25,118.22,81.9]
[1743636038867,85.18247359,118.23,118.19,81.9]
[1743636039045,111.18247359,118.21,118.19,81.9]
[1743636039246,26.0,118.21,118.19,90.3608]
[1743636039848,27.71402314,118.29,118.19,90.3608]
[1743636040046,18.64964886,118.27,118.2,0.42648471]
[1743636040266,18.64964886,118.28,118.2,0.42648471]
[1743636040771,26.0,118.26,118.2,0.42648471]
[1743636040973,18.64964886,118.28,118.22,0.14216157]
[1743636041171,26.0,118.27,118.23,0.28432314]
[1743636041468,85.18247359,118.28,118.23,1.85592314]
[1743636041669,85.18247359,118.25,118.22,81.9]
[1743636041869,85.18247359,118.24,118.22,81.9]
[1743636042075,26.0,118.23,118.22,81.9]
[1743636042768,129.83212245,118.23,118.19,81.9]
[1743636042974,111.18247359,118.23,118.2,0.14216157]
[1743636043171,26.0,118.25,118.2,0.14216157]
[1743636043371,26.0,118.24,118.2,0.42648471]
[1743636043876,26.0,118.24,118.2,0.28432314]
[1743636043877,111.18247359,118.24,118.2,0.28432314]
[1743636044077,111.18247359,118.24,118.19,8.4607]
[1743636044078,85.18247359,118.22,118.19,81.9]
[1743636044268,85.18247359,118.22,118.19,90.3608]
[1743636044579,18.64964886,118.23,118.19,90.3608]
[1743636044754,103.83212245,118.23,118.19,90.3608]
[1743636045973,115.91463516,118.3,118.2,0.42648471]
[1743636045974,85.18247359,118.25,118.2,0.42648471]
[1743636046477,85.18247359,118.25,118.2,82.32648471]
[1743636047050,26.0,118.24,118.21,8.4595]
[1743636047461,85.18247359,118.26,118.21,8.4595]
[1743636047666,56.82639845,118.25,118.21,90.3595]
[1743636048273,82.82639845,118.24,118.21,90.3595]
[1743636048477,26.0,118.24,118.21,90.3595]
[1743636048676,26.0,118.24,118.21,81.9]
[1743636049868,26.0,118.24,118.21,90.3595]
[1743636050466,75.47604731,118.27,118.22,0.28432314]
[1743636050667,56.82639845,118.27,118.22,0.42648471]
[1743636051180,56.82639845,118.26,118.22,82.18432314]
[1743636051586,18.64964886,118.27,118.22,82.18432314]
[1743636051768,56.82639845,118.27,118.22,90.64302314]
[1743636051970,82.82639845,118.26,118.22,82.18432314]
[1743636052171,56.82639845,118.25,118.22,81.9]
[1743636052368,82.82639845,118.26,118.22,81.9]
[1743636054087,26.0,118.26,118.22,90.3586]
[1743636054483,26.0,118.26,118.22,91.9825]
[1743636054683,82.82639845,118.26,118.22,83.5239]
[1743636055077,82.82639845,118.26,118.22,83.5869]
[1743636055291,26.0,118.26,118.22,92.0456]
[1743636055585,0.03,118.3,118.23,0.42648471]
[1743636055789,0.03,118.3,118.25,0.42648471]
[1743636055990,0.03,118.3,118.27,0.42648471]
[1743636056176,0.03,118.3,118.29,6.63588471]
[1743636056689,0.03,118.32,118.29,132.53588471]
[1743636056992,0.0001,118.32,118.29,132.53588471]
[1743636057169,0.063,118.35,118.31,1.97808471]
[1743636057371,0.063,118.35,118.33,0.14216157]
[1743636057582,0.063,118.35,118.34,0.28432314]
[1743636057885,0.063,118.35,118.34,82.18432314]
[1743636058059,0.063,118.35,118.34,82.32648471]
[1743636058466,6.1995,118.44,118.34,126.32648471]
[1743636058764,56.82639845,118.42,118.34,126.32648471]
[1743636059373,75.47604731,118.43,118.36,0.14216157]
[1743636059571,0.063,118.44,118.37,0.28432314]
[1743636059804,56.82639845,118.42,118.37,82.18432314]
[1743636059975,18.64964886,118.43,118.37,82.18432314]
[1743636060292,18.64964886,118.41,118.37,81.9]
[1743636060467,8.5061,118.44,118.37,88.3887]
[1743636060667,26.0,118.4,118.37,88.3887]
[1743636060873,26.0,118.4,118.37,81.9]
[1743636061187,26.0,118.38,118.35,8.4495]
[1743636061390,18.64964886,118.36,118.32,8.4516]
[1743636061571,75.47604731,118.36,118.32,8.4516]
[1743636062073,75.47604731,118.36,118.31,91.9036]
[1743636062682,56.82639845,118.35,118.31,83.4516]
[1743636062891,56.82639845,118.35,118.31,81.9]
[1743636063095,18.64964886,118.34,118.31,81.9]
[1743636063394,75.47604731,118.34,118.3,8.4528]
[1743636063569,56.82639845,118.33,118.3,8.4528]
[1743636064381,75.47604731,118.31,118.27,91.902]
[1743636064585,56.82639845,118.3,118.27,81.9]
[1743636064783,18.64964886,118.29,118.25,8.4563]
[1743636066169,56.82639845,118.32,118.26,0.28432314]
[1743636066376,10.04,118.33,118.26,82.32648471]
[1743636066695,6.55371286,118.4,118.36,0.42648471]
[1743636066878,6.55371286,118.4,118.36,92.36648471]
[1743636067202,56.82639845,118.37,118.33,81.9]
[1743636067500,56.82639845,118.37,118.33,90.3503]
[1743636068472,75.47604731,118.38,118.33,111.4776]
[1743636068684,56.82639845,118.38,118.34,0.28432314]
[1743636068893,56.82639845,118.39,118.34,0.28432314]
[1743636069394,66.86639845,118.4,118.35,8.4495]
[1743636069598,66.86639845,118.4,118.35,90.3495]
[1743636070190,56.82639845,118.39,118.35,90.3495]
[1743636070394,56.82639845,118.36,118.35,81.9]
[1743636070598,56.82639845,118.38,118.34,0.28432314]
[1743636070814,10.04,118.4,118.34,0.42648471]
[1743636070989,10.04,118.4,118.34,82.32648471]
[1743636071177,66.86639845,118.4,118.34,82.32648471]
[1743636071687,66.86639845,118.4,118.35,8.4495]
[1743636071989,66.86639845,118.4,118.35,90.3495]
[1743636073400,56.82639845,118.39,118.35,90.3495]
[1743636073701,75.47604731,118.38,118.35,90.3495]
[1743636073998,18.64964886,118.38,118.35,90.3495]
[1743636074197,75.47604731,118.38,118.35,90.3495]
[1743636075196,75.47604731,118.38,118.35,81.9]
[1743636075398,56.82639845,118.36,118.35,81.9]
[1743636075576,56.82639845,118.36,118.33,90.3506]
[1743636075777,56.82639845,118.37,118.33,90.3506]
[1743636078498,18.64964886,118.37,118.33,90.3506]
[1743636079100,56.82639845,118.38,118.34,0.28432314]
[1743636079303,0.063,118.44,118.38,0.28432314]
[1743636079504,56.88939845,118.44,118.38,82.18432314]
[1743636079684,18.64964886,118.42,118.38,81.9]
[1743636079995,56.82639845,118.39,118.35,6.063]
[1743636080194,75.47604731,118.37,118.34,1.6412]
[1743636080397,56.82639845,118.36,118.33,90.4136]
[1743636081306,10.04,118.41,118.34,0.28432314]
[1743636081606,18.64964886,118.4,118.34,82.18432314]
[1743636082180,10.04,118.42,118.35,0.14216157]
[1743636082502,75.47604731,118.43,118.35,0.14216157]
[1743636082681,18.64964886,118.43,118.35,0.14216157]
[1743636082883,75.47604731,118.43,118.35,0.14216157]
[1743636083385,75.47604731,118.43,118.37,0.28432314]
[1743636083587,0.063,118.44,118.38,8.01506157]
[1743636083787,26.063,118.44,118.38,89.91506157]
[1743636084206,18.71264886,118.44,118.39,0.28432314]
[1743636084391,75.53904731,118.44,118.39,0.28432314]
[1743636084586,18.71264886,118.44,118.39,82.18432314]
[1743636085607,56.88939845,118.44,118.4,8.4459]
[1743636085807,18.64964886,118.43,118.4,8.4459]
[1743636086008,75.47604731,118.43,118.4,8.4459]
[1743636086210,18.64964886,118.41,118.39,90.3464]
[1743636086511,18.64964886,118.41,118.39,8.4464]
[1743636087091,18.64964886,118.41,118.36,29.5701]
[1743636087408,26.0,118.42,118.36,111.4701]
[1743636087617,18.64964886,118.43,118.37,0.42648471]
[1743636087791,75.47604731,118.43,118.37,0.42648471]
[1743636087989,18.64964886,118.43,118.36,111.4701]
[1743636088216,56.82639845,118.39,118.36,90.3488]
[1743636088515,75.47604731,118.38,118.35,10.0535]
[1743636089097,18.64964886,118.38,118.35,10.0535]
[1743636091901,0.03,118.38,118.35,91.9535]
[1743636092901,56.85639845,118.38,118.35,91.9535]
[1743636093101,56.82639845,118.36,118.33,0.063]
[1743636093316,56.82639845,118.35,118.33,0.063]
[1743636093617,75.47604731,118.34,118.33,0.063]
[1743636096821,18.64964886,118.34,118.33,0.063]